fUST/lending_fUST_20250120
["ID","MTS","AMOUNT","RATE_DAILY","PERIOD"]
[349618753,1737329461029,-201.333208,0.00022328,7]
[349618755,1737329461048,-500.0,0.00022328,3]
[349618757,1737329461058,-201.333208,0.00022328,7]
[349618759,1737329461069,-714.597216,0.00022328,7]
[349618761,1737329461079,-600.0,0.00022328,3]
[349618763,1737329461090,-714.597216,0.00022328,7]
[349618765,1737329461102,-500.0,0.00022328,3]
[349618767,1737329461112,-500.0,0.00022328,3]
[349618769,1737329461122,-16474.84,0.00022328,3]
[349618771,1737329461133,-500.0,0.00022328,3]
[349618773,1737329461144,-541.24,0.00022328,3]
[349618775,1737329461154,-2833.45,0.00022328,3]
[349618777,1737329461164,-500.0,0.00022328,3]
[349618779,1737329461176,-2144.06,0.00022328,3]
[349618781,1737329461186,-231.860929,0.00022328,7]
[349618783,1737329461196,-500.0,0.00022328,3]
[349618785,1737329461208,-596.05,0.00022328,3]
[349618787,1737329461218,-231.860929,0.00022328,7]
[349618789,1737329461230,-795.1,0.00022328,2]
[349618791,1737329461239,-500.0,0.00022328,3]
[349618793,1737329461249,-588.92,0.00022328,3]
[349618795,1737329461258,-500.0,0.00022328,3]
[349618797,1737329461268,-500.0,0.00022328,3]
[349618799,1737329461281,-500.0,0.00022328,3]
[349618801,1737329461299,-500.0,0.00022328,3]
[349618803,1737329461309,-820.957155,0.00022328,7]
[349618805,1737329461319,-500.0,0.00022328,3]
[349618807,1737329461329,-151.0,0.00022328,7]
[349618809,1737329461339,-559.315369,0.00022328,7]
[349618811,1737329461349,-820.957155,0.00022328,7]
[349618813,1737329461359,-241.953744,0.00022328,7]
[349618815,1737329461370,-559.315369,0.00022328,7]
[349618817,1737329461379,-500.0,0.00022328,3]
[349618819,1737329461389,-6498.92,0.00022328,3]
[349618821,1737329461398,-151.0,0.00022328,7]
[349618823,1737329461409,-500.0,0.00022328,3]
[349618825,1737329461418,-500.0,0.00022328,3]
[349618827,1737329461427,-500.0,0.00022328,3]
[349618829,1737329461436,-728.15,0.00022328,3]
[349618831,1737329461446,-151.0,0.00022328,7]
[349618833,1737329461456,-151.0,0.00022328,7]
[349618835,1737329461466,-500.0,0.00022328,3]
[349618837,1737329461475,-416.95497408,0.00022328,3]
[349618839,1737329461485,-557.31,0.00022328,3]
[349618841,1737329461494,-500.0,0.00022328,3]
[349618843,1737329461504,-211.729406,0.00022328,7]
[349618845,1737329461514,-500.0,0.00022328,3]
[349618847,1737329461524,-382.08918817,0.00022328,3]
[349618849,1737329461533,-500.0,0.00022328,3]
[349618851,1737329461549,-211.729406,0.00022328,7]
[349618853,1737329461559,-4061.53,0.00022328,3]
[349618855,1737329461569,-1468.57,0.00022328,3]
[349618856,1737329461579,-500.0,0.00022328,3]
[349618859,1737329461589,-1351.12,0.00022328,3]
[349618861,1737329461599,-500.0,0.00022328,3]
[349618863,1737329461611,-383.12525568,0.00022328,3]
[349618865,1737329461621,-562.42,0.00022328,3]
[349618867,1737329461631,-10992.0,0.00022328,3]
[349618869,1737329461641,-500.0,0.00022328,3]
[349618871,1737329461652,-706.83,0.00022328,3]
[349618873,1737329461662,-500.0,0.00022328,3]
[349618875,1737329461672,-1865.41,0.00022328,3]
[349618877,1737329461682,-373.603395,0.00022328,7]
[349618879,1737329461692,-167.191647,0.00022328,7]
[349618881,1737329461702,-500.0,0.00022328,3]
[349618883,1737329461711,-500.0,0.00022328,3]
[349618885,1737329461721,-167.191647,0.00022328,7]
[349618887,1737329461730,-373.603395,0.00022328,7]
[349618889,1737329461740,-500.0,0.00022328,3]
[349618891,1737329461750,-566.86,0.00022328,3]
[349618893,1737329461759,-500.0,0.00022328,3]
[349618895,1737329461769,-500.0,0.00022328,3]
[349618897,1737329461779,-573.74,0.00022328,3]
[349618899,1737329461795,-500.0,0.00022328,3]
[349618901,1737329461805,-500.0,0.00022328,3]
[349618903,1737329461815,-500.0,0.00022328,3]
[349618905,1737329461825,-559.827581,0.00022328,7]
[349618907,1737329461836,-378.564865,0.00022372,2]
[349618909,1737329461846,-500.0,0.00022398,2]
[349618911,1737329461856,-20867.0,0.000224,2]
[349618913,1737329461865,-151.0,0.000224,5]
[349618915,1737329461876,-2432.83612158,0.00022417,3]
[349618917,1737329461886,-682.69520308,0.00022443,2]
[349618919,1737329461896,-378.564865,0.0002246,2]
[349618921,1737329461905,-864.87,0.00022464,3]
[349618923,1737329461916,-864.87,0.00022464,3]
[349618925,1737329461925,-864.87,0.00022464,3]
[349618927,1737329461935,-864.87,0.00022464,3]
[349618929,1737329461944,-864.87,0.00022464,3]
[349618931,1737329461954,-864.87,0.00022464,3]
[349618933,1737329461963,-864.93226547,0.00022464,3]
[349618935,1737329461972,-500.0,0.00022465,3]
[349618937,1737329461982,-500.0,0.00022465,3]
[349618939,1737329461992,-500.0,0.00022465,3]
[349618941,1737329462002,-500.0,0.00022465,3]
[349618943,1737329462012,-500.0,0.00022465,3]
[349618945,1737329462022,-500.0,0.00022465,3]
[349618947,1737329462032,-500.0,0.00022465,3]
[349618950,1737329462049,-517.92,0.00022465,3]
[349618951,1737329462058,-500.0,0.00022465,3]
[349618953,1737329462067,-257.2116859,0.00022465,3]
[349618955,1737329462077,-500.0,0.00022465,3]
[349618957,1737329462086,-517.6667592,0.00022465,3]
[349618959,1737329462095,-459.53486951,0.00022465,3]
[349618961,1737329462104,-500.0,0.00022465,3]
[349618963,1737329462113,-151.0,0.00022465,7]
[349618965,1737329462122,-151.0,0.00022465,7]
[349618967,1737329462131,-500.0,0.00022465,3]
[349618969,1737329462141,-500.0,0.00022465,3]
[349618971,1737329462150,-500.0,0.00022465,3]
[349618973,1737329462159,-658.808739,0.00022465,7]
[349618975,1737329462168,-151.0,0.00022465,7]
[349618977,1737329462178,-658.808739,0.00022465,7]
[349618979,1737329462187,-500.0,0.00022465,3]
[349618981,1737329462196,-500.0,0.00022465,3]
[349618983,1737329462206,-500.0,0.00022465,3]
[349618985,1737329462215,-500.0,0.00022465,3]
[349618987,1737329462224,-151.0,0.00022465,7]
[349618989,1737329462238,-151.0,0.00022465,7]
[349618991,1737329462247,-500.0,0.00022465,3]
[349618993,1737329462257,-500.0,0.00022465,3]
[349618995,1737329462266,-500.0,0.00022465,3]
[349618997,1737329462278,-500.0,0.00022465,3]
[349619008,1737329462366,-205.16827,0.00022465,7]
[349619010,1737329462387,-205.16827,0.00022465,7]
[349619012,1737329462396,-500.0,0.00022465,3]
[349619014,1737329462406,-500.0,0.00022465,3]
[349619016,1737329462415,-500.0,0.00022465,3]
[349619018,1737329462425,-641.72935191,0.00022465,3]
[349619021,1737329462436,-500.0,0.00022465,3]
[349619023,1737329462446,-500.0,0.00022465,3]
[349619025,1737329462456,-500.0,0.00022465,3]
[349619027,1737329462465,-500.0,0.00022465,3]
[349619028,1737329462475,-557.17,0.00022465,3]
[349619029,1737329462486,-151.0,0.00022465,7]
[349619030,1737329462495,-517.42,0.00022465,3]
[349619031,1737329462505,-500.0,0.00022465,3]
[349619032,1737329462515,-151.0,0.00022465,7]
[349619033,1737329462525,-151.0,0.00022465,7]
[349619034,1737329462541,-151.0,0.00022465,7]
[349619035,1737329462550,-223.1878319,0.00022465,3]
[349619036,1737329462559,-500.0,0.00022465,3]
[349619038,1737329462569,-500.0,0.00022465,3]
[349619040,1737329462579,-500.0,0.00022465,3]
[349619042,1737329462589,-497.56888914,0.00022465,3]
[349619044,1737329462598,-336.234115,0.00022465,7]
[349619046,1737329462608,-336.234115,0.00022465,7]
[349619048,1737329462617,-500.0,0.00022465,3]
[349619050,1737329462628,-500.0,0.00022465,3]
[349619052,1737329462638,-500.0,0.00022465,3]
[349619054,1737329462648,-500.0,0.00022465,3]
[349619056,1737329462658,-500.0,0.00022465,3]
[349619058,1737329462668,-193.226896,0.00022465,7]
[349619060,1737329462677,-500.0,0.00022465,3]
[349619062,1737329462686,-193.226896,0.00022465,7]
[349619064,1737329462696,-500.0,0.00022465,3]
[349619066,1737329462707,-500.0,0.00022465,3]
[349619067,1737329462716,-500.0,0.00022465,3]
[349619069,1737329462725,-500.0,0.00022465,3]
[349619071,1737329462735,-559.78,0.00022465,3]
[349619074,1737329462745,-500.0,0.00022465,3]
[349619076,1737329462757,-514.601942,0.00022465,7]
[349619078,1737329462767,-500.0,0.00022465,3]
[349619080,1737329462777,-500.0,0.00022465,3]
[349619082,1737329462791,-6315.05,0.00022465,3]
[349619084,1737329462801,-514.601942,0.00022465,7]
[349619086,1737329462811,-500.0,0.00022465,3]
[349619088,1737329462820,-500.0,0.00022465,3]
[349619090,1737329462832,-1186.17,0.00022465,3]
[349619092,1737329462842,-1582.14,0.00022465,3]
[349619094,1737329462851,-500.0,0.00022465,3]
[349619096,1737329462860,-1503.12,0.00022465,3]
[349619098,1737329462869,-500.0,0.00022465,3]
[349619100,1737329462878,-3700.18,0.00022465,3]
[349619102,1737329462888,-500.0,0.00022465,3]
[349619104,1737329462898,-3417.15,0.00022465,3]
[349619106,1737329462908,-201.333208,0.00022465,7]
[349619108,1737329462917,-500.0,0.00022465,3]
[349619110,1737329462928,-201.333208,0.00022465,7]
[349619112,1737329462937,-714.597216,0.00022465,7]
[349619114,1737329462946,-714.597216,0.00022465,7]
[349619116,1737329462956,-500.0,0.00022465,3]
[349619118,1737329462965,-500.0,0.00022465,3]
[349619120,1737329462974,-1632.33229647,0.00022465,3]
[349619133,1737329463093,-1317.6385398,0.00020996,2]
[349619135,1737329463103,-3732.3614602,0.00022465,3]
[349619138,1737329463117,-749.90433876,0.00022465,3]
[349619808,1737329591228,1449.60889516,0.0002102,14]
[349619809,1737329592364,293.659568,0.00016218,2]
[349619810,1737329592665,293.659568,0.00014664,2]
[349619811,1737329593913,293.659568,0.0001629,10]
[349619812,1737329594222,293.659568,0.0001452,10]
[349619813,1737329595436,293.659568,0.00016322,5]
[349619814,1737329595736,293.659568,0.00014519,5]
[349619815,1737329596370,293.659568,0.00019918,31]
[349619816,1737329597038,293.659568,0.00018147,31]
[349619817,1737329597351,293.659568,0.00016376,31]
[349619818,1737329597660,293.659568,0.00014604,31]
[349619819,1737329598266,293.659568,0.00019624,14]
[349619820,1737329598586,293.659568,0.00017918,14]
[349619821,1737329598908,293.659568,0.00016211,14]
[349619822,1737329599381,293.659568,0.00014505,14]
[349619823,1737329600957,293.659568,0.00015611,4]
[349619824,1737329601278,293.659568,0.00014215,4]
[349619825,1737329601947,293.659568,0.00019815,30]
[349619826,1737329602256,293.659568,0.0001803,30]
[349619827,1737329602668,293.659568,0.00016245,30]
[349619828,1737329602886,293.659568,0.0001446,30]
[349619831,1737329956806,185.984394,0.00016327,5]
[349619832,1737329957121,185.984394,0.00014519,5]
[349619833,1737329958815,185.984394,0.00016211,14]
[349619834,1737329959124,185.984394,0.00014505,14]
[349619835,1737329960363,185.984394,0.0001629,10]
[349619836,1737329960663,185.984394,0.0001452,10]
[349619837,1737329962105,185.984394,0.00016182,2]
[349619838,1737329962412,185.984394,0.00014616,2]
[349619839,1737329963674,185.984394,0.00015698,4]
[349619840,1737329963977,185.984394,0.0001433,4]
[349619841,1737329964643,185.984394,0.00019833,31]
[349619842,1737329964994,185.984394,0.00018066,31]
[349619843,1737329965490,185.984394,0.00016299,31]
[349619844,1737329965589,6481.97442443,0.000236,120]
[349619845,1737329965799,185.984394,0.00014532,31]
[349619847,1737330463326,165.280803,0.00013973,2]
[349619852,1737330558743,156.618437,0.00019869,31]
[349619853,1737330559490,156.618437,0.00018138,31]
[349619957,1737330632678,-293.659568,0.00016901,2]
[349619959,1737330632693,-156.618437,0.00017104,4]
[349619961,1737330632704,-156.618437,0.00017463,7]
[349619964,1737330632715,-156.618437,0.0001761,5]
[349619966,1737330632726,-156.618437,0.0001806,10]
[349619968,1737330632737,-156.618437,0.00018452,4]
[349619971,1737330632748,-156.618437,0.00018766,7]
[349619973,1737330632759,-156.618437,0.00019155,5]
[349619975,1737330632770,-156.618437,0.00019326,2]
[349619977,1737330632781,-165.8993456,0.00019331,2]
[349619979,1737330632792,-156.618437,0.00019624,14]
[349619981,1737330632803,-157.85,0.000198,2]
[349619984,1737330632814,-156.618437,0.000198,4]
[349619986,1737330632824,-156.618437,0.0001983,10]
[349619988,1737330632835,-156.618437,0.0002007,7]
[349619990,1737330632847,-500.0,0.00020363,2]
[349619992,1737330632858,-260.90846449,0.00020556,7]
[349619994,1737330632870,-156.618437,0.000207,5]
[349619997,1737330632880,-156.618437,0.0002088,2]
[349619999,1737330632892,-189.282432,0.00020902,2]
[349620001,1737330632903,-189.282432,0.00021097,2]
[349620003,1737330632915,-189.282432,0.00021292,2]
[349620005,1737330632926,-156.618437,0.0002133,14]
[349620007,1737330632940,-189.282432,0.00021488,2]
[349620010,1737330632951,-843.6351332,0.000215,2]
[349620012,1737330632962,-300.0,0.000215,2]
[349620014,1737330632974,-10109.95518418,0.00021515,2]
[349620016,1737330632983,-156.618437,0.000216,10]
[349620018,1737330632993,-156.618437,0.000216,31]
[349620020,1737330633004,-153.0,0.00021726,2]
[349620022,1737330633014,-215.1283215,0.00021726,2]
[349620024,1737330633023,-153.0,0.00021726,2]
[349620026,1737330633179,-215.1283215,0.00021726,2]
[349620027,1737330633208,-192.2277192,0.00021726,2]
[349620029,1737330633219,-153.0,0.00021726,2]
[349620030,1737330633230,-153.0,0.00021726,2]
[349620032,1737330633240,-153.0,0.00021726,2]
[349620034,1737330633250,-239.691,0.00021778,2]
[349620036,1737330633260,-1215.00260044,0.00021779,2]
[349620038,1737330633271,-783.35662132,0.00021817,2]
[349620040,1737330633281,-448.90442012,0.00021817,2]
[349620042,1737330633290,-1115.53833251,0.00021817,2]
[349620044,1737330633300,-1527.71111481,0.000219,3]
[349620047,1737330633310,-10109.95518418,0.00021901,2]
[349620048,1737330633319,-500.0,0.00021917,2]
[349620051,1737330633329,-500.0,0.00021917,3]
[349620052,1737330633338,-500.0,0.00021917,3]
[349620055,1737330633348,-500.0,0.00021917,3]
[349620056,1737330633357,-500.0,0.00021917,3]
[349620059,1737330633367,-500.0,0.00021917,3]
[349620061,1737330633377,-500.0,0.00021917,3]
[349620062,1737330633386,-500.0,0.00021917,3]
[349620063,1737330633395,-500.0,0.00021917,3]
[349620065,1737330633405,-500.0,0.00021917,3]
[349620067,1737330633416,-608.07731503,0.00021917,3]
[349620068,1737330633425,-500.0,0.00021917,3]
[349620070,1737330633439,-500.0,0.00021917,3]
[349620072,1737330633449,-500.0,0.00021917,3]
[349620074,1737330633458,-500.0,0.00021917,3]
[349620076,1737330633468,-500.0,0.00021917,3]
[349620078,1737330633477,-500.0,0.00021917,3]
[349620080,1737330633487,-500.0,0.00021917,3]
[349620082,1737330633497,-500.0,0.00021917,3]
[349620084,1737330633506,-500.0,0.00021917,3]
[349620086,1737330633515,-500.0,0.00021917,3]
[349620088,1737330633524,-500.0,0.00021917,3]
[349620090,1737330633534,-500.0,0.00021917,3]
[349620092,1737330633543,-500.0,0.00021917,3]
[349620094,1737330633552,-500.0,0.00021917,3]
[349620096,1737330633561,-500.0,0.00021917,3]
[349620098,1737330633570,-500.0,0.00021917,3]
[349620100,1737330633580,-417.85586803,0.00021917,2]
[349620102,1737330633590,-500.0,0.00021917,3]
[349620104,1737330633600,-347.81996421,0.00021917,3]
[349620106,1737330633611,-500.0,0.00021917,3]
[349620108,1737330633622,-500.0,0.00021917,3]
[349620110,1737330633632,-500.0,0.00021917,3]
[349620112,1737330633643,-500.0,0.00021917,3]
[349620114,1737330633656,-500.0,0.00021917,3]
[349620116,1737330633666,-500.0,0.00021917,3]
[349620118,1737330633676,-500.0,0.00021917,3]
[349620120,1737330633693,-500.0,0.00021917,3]
[349620122,1737330633704,-500.0,0.00021917,3]
[349620124,1737330633714,-500.0,0.00021917,3]
[349620126,1737330633724,-500.0,0.00021917,3]
[349620128,1737330633735,-500.0,0.00021917,3]
[349620130,1737330633747,-500.0,0.00021917,3]
[349620132,1737330633758,-500.0,0.00021917,3]
[349620134,1737330633769,-549.89,0.00021917,3]
[349620136,1737330633780,-306.79407296,0.00021917,3]
[349620138,1737330633790,-442.30742774,0.00021917,3]
[349620223,1737330638249,-57.69257226,0.00021917,3]
[349620225,1737330638259,-242.30742774,0.00021917,3]
[349620237,1737330638362,-257.69257226,0.00021917,3]
[349620239,1737330638371,-500.0,0.00021917,3]
[349620241,1737330638381,-500.0,0.00021917,3]
[349620243,1737330638391,-500.0,0.00021917,3]
[349620245,1737330638400,-509.73297122,0.00021917,2]
[349620247,1737330638409,-139.57445652,0.00021917,3]
[349620250,1737330638422,-360.42554348,0.00021917,3]
[349620251,1737330638431,-500.0,0.00021917,3]
[349620254,1737330638442,-505.37133121,0.00021917,3]
[349620256,1737330638451,-611.28703007,0.00021917,3]
[349620258,1737330638460,-606.79868123,0.00021917,3]
[349620260,1737330638469,-500.0,0.00021917,3]
[349620261,1737330638479,-285.19941401,0.00021917,3]
[349620264,1737330638491,-214.80058599,0.00021917,3]
[349620266,1737330638500,-356.07679783,0.00021917,3]
[349620268,1737330638512,-143.92320217,0.00021917,3]
[349620270,1737330638523,-679.92,0.00021917,2]
[349620272,1737330638532,-500.0,0.00021917,3]
[349620274,1737330638542,-500.0,0.00021917,3]
[349620276,1737330638551,-500.0,0.00021917,3]
[349620278,1737330638560,-20.94662811,0.00021917,3]
[349620281,1737330638572,-479.05337189,0.00021917,3]
[349620283,1737330638581,-500.0,0.00021917,3]
[349620285,1737330638591,-500.0,0.00021917,3]
[349620287,1737330638600,-500.0,0.00021917,3]
[349620288,1737330638609,-500.0,0.00021917,3]
[349620289,1737330638621,-500.0,0.00021917,3]
[349620290,1737330638631,-500.0,0.00021917,3]
[349620291,1737330638640,-500.0,0.00021917,3]
[349620292,1737330638655,-500.0,0.00021917,3]
[349620293,1737330638664,-474.67707206,0.00021917,3]
[349620294,1737330638676,-857.14292794,0.00021917,3]
[349620295,1737330638686,-500.0,0.00021917,3]
[349620296,1737330638698,-500.0,0.00021917,3]
[349620297,1737330638709,-500.0,0.00021917,3]
[349620298,1737330638719,-500.0,0.00021917,3]
[349620299,1737330638729,-13707.54,0.00021917,3]
[349620300,1737330638739,-500.0,0.00021917,3]
[349620301,1737330638748,-500.0,0.00021917,3]
[349620303,1737330638757,-2890.82,0.00021917,3]
[349620305,1737330638767,-500.0,0.00021917,3]
[349620307,1737330638776,-1862.31,0.00021917,3]
[349620309,1737330638786,-500.0,0.00021917,3]
[349620311,1737330638795,-500.0,0.00021917,3]
[349620313,1737330638805,-517.54,0.00021917,3]
[349620315,1737330638814,-500.0,0.00021917,3]
[349620317,1737330638824,-500.0,0.00021917,3]
[349620319,1737330638834,-532.43,0.00021917,3]
[349620321,1737330638845,-500.0,0.00021917,2]
[349620323,1737330638855,-5786.25,0.00021917,3]
[349620325,1737330638864,-500.0,0.00021917,3]
[349620327,1737330638874,-500.0,0.00021917,3]
[349620329,1737330638884,-500.0,0.00021917,3]
[349620331,1737330638893,-500.0,0.00021917,3]
[349620333,1737330638903,-373.57200421,0.00021917,3]
[349620335,1737330638912,-500.0,0.00021917,3]
[349620337,1737330638922,-500.0,0.00021917,3]
[349620339,1737330638931,-500.0,0.00021917,3]
[349620341,1737330638943,-500.0,0.00021917,3]
[349620343,1737330638952,-500.0,0.00021917,3]
[349620345,1737330638962,-500.0,0.00021917,3]
[349620347,1737330638971,-500.0,0.00021917,3]
[349620349,1737330638981,-606.79,0.00021917,3]
[349620351,1737330638990,-500.0,0.00021917,3]
[349620353,1737330638999,-500.0,0.00021917,3]
[349620355,1737330639009,-312.79469999,0.00021917,3]
[349620357,1737330639018,-500.0,0.00021917,3]
[349620359,1737330639028,-500.0,0.00021917,3]
[349620361,1737330639038,-500.0,0.00021917,3]
[349620363,1737330639047,-267.69569931,0.00021917,3]
[349620365,1737330639057,-499.0,0.00021917,2]
[349620367,1737330639066,-3457.45,0.00021917,3]
[349620369,1737330639075,-9337.65,0.00021917,3]
[349620371,1737330639084,-500.0,0.00021917,3]
[349620373,1737330639094,-500.0,0.00021917,3]
[349620375,1737330639104,-500.0,0.00021917,3]
[349620377,1737330639114,-1150.76,0.00021917,3]
[349620379,1737330639123,-500.0,0.00021917,3]
[349620381,1737330639133,-609.85,0.00021917,3]
[349620383,1737330639143,-500.0,0.00021917,3]
[349620385,1737330639152,-1612.84,0.00021917,3]
[349620387,1737330639161,-500.0,0.00021917,3]
[349620389,1737330639171,-500.0,0.00021917,3]
[349620391,1737330639180,-500.0,0.00021917,3]
[349620393,1737330639191,-500.0,0.00021917,3]
[349620395,1737330639201,-1254.99,0.00021917,3]
[349620397,1737330639210,-500.0,0.00021917,3]
[349620399,1737330639220,-500.0,0.00021917,3]
[349620401,1737330639229,-500.0,0.00021917,3]
[349620403,1737330639238,-502.5,0.00021917,3]
[349620405,1737330639248,-500.0,0.00021917,3]
[349620407,1737330639257,-500.0,0.00021917,3]
[349620409,1737330639266,-500.0,0.00021917,3]
[349620411,1737330639275,-500.0,0.00021917,3]
[349620413,1737330639285,-647.54,0.00021917,3]
[349620415,1737330639294,-500.0,0.00021917,3]
[349620417,1737330639303,-500.0,0.00021917,3]
[349620419,1737330639313,-500.0,0.00021917,3]
[349620421,1737330639324,-500.0,0.00021917,3]
[349620423,1737330639333,-500.0,0.00021917,3]
[349620425,1737330639342,-500.0,0.00021917,3]
[349620427,1737330639351,-500.0,0.00021917,3]
[349620429,1737330639360,-500.0,0.00021917,3]
[349620431,1737330639370,-500.0,0.00021917,3]
[349620433,1737330639379,-994.34,0.00021917,3]
[349620435,1737330639389,-1221.3,0.00021917,3]
[349620437,1737330639398,-5236.39,0.00021917,3]
[349620439,1737330639407,-3035.76,0.00021917,3]
[349620441,1737330639416,-448.90442008,0.0002192,2]
[349620443,1737330639425,-151.0,0.00022,5]
[349620445,1737330639434,-1527.71111467,0.00022003,3]
[349620447,1737330639446,-10109.95518418,0.00022015,2]
[349620449,1737330639455,-448.90442008,0.00022023,2]
[349620451,1737330639465,-500.0,0.00022053,2]
[349620452,1737330639474,-500.0,0.00022053,2]
[349620454,1737330639483,-500.0,0.00022053,2]
[349620456,1737330639492,-341.96457378,0.00022053,2]
[349620458,1737330639502,-500.0,0.00022053,2]
[349620460,1737330639512,-500.0,0.00022053,2]
[349620462,1737330639521,-365.20666532,0.00022053,2]
[349620464,1737330639531,-462.45394099,0.00022053,2]
[349620466,1737330639541,-500.0,0.00022053,2]
[349620468,1737330639551,-500.0,0.00022053,2]
[349620470,1737330639560,-500.0,0.00022053,2]
[349620472,1737330639570,-500.0,0.00022053,2]
[349620474,1737330639579,-500.0,0.00022053,2]
[349620476,1737330639588,-500.0,0.00022053,2]
[349620478,1737330639597,-500.0,0.00022053,2]
[349620480,1737330639607,-500.0,0.00022053,2]
[349620482,1737330639620,-171.14405914,0.00022053,2]
[349620484,1737330639630,-500.0,0.00022053,2]
[349620486,1737330639639,-500.0,0.00022053,2]
[349620488,1737330639649,-500.0,0.00022053,2]
[349620490,1737330639659,-500.0,0.00022053,2]
[349620492,1737330639669,-500.0,0.00022054,3]
[349620494,1737330639678,-618.12,0.00022054,3]
[349620496,1737330639692,-500.0,0.00022054,3]
[349620498,1737330639701,-500.0,0.00022054,3]
[349620500,1737330639710,-528.2,0.00022054,3]
[349620502,1737330639720,-500.0,0.00022054,3]
[349620504,1737330639729,-511.8774134,0.00022054,3]
[349620506,1737330639738,-585.87407773,0.00022054,3]
[349620508,1737330639749,-500.0,0.00022054,3]
[349620511,1737330639758,-500.0,0.00022054,3]
[349620513,1737330639768,-500.0,0.00022054,3]
[349620515,1737330639779,-500.0,0.00022054,3]
[349620517,1737330639788,-500.0,0.00022054,3]
[349620519,1737330639797,-500.0,0.00022054,3]
[349620521,1737330639808,-513.59730773,0.00022054,3]
[349620523,1737330639817,-500.0,0.00022054,3]
[349620525,1737330639826,-500.0,0.00022054,3]
[349620527,1737330639835,-500.0,0.00022054,3]
[349620529,1737330639845,-500.0,0.00022054,3]
[349620531,1737330639854,-500.0,0.00022054,3]
[349620533,1737330639863,-500.0,0.00022054,3]
[349620535,1737330639872,-500.0,0.00022054,3]
[349620537,1737330639881,-500.0,0.00022054,3]
[349620549,1737330639981,-500.0,0.00022054,3]
[349620551,1737330639993,-500.0,0.00022054,3]
[349620553,1737330640002,-500.0,0.00022054,3]
[349620555,1737330640012,-500.0,0.00022054,3]
[349620557,1737330640021,-500.0,0.00022054,3]
[349620559,1737330640030,-500.0,0.00022054,3]
[349620561,1737330640039,-500.0,0.00022054,3]
[349620563,1737330640049,-500.0,0.00022054,3]
[349620565,1737330640058,-500.0,0.00022054,3]
[349620567,1737330640068,-500.0,0.00022054,3]
[349620569,1737330640077,-529.79,0.00022054,3]
[349620571,1737330640087,-500.0,0.00022054,3]
[349620573,1737330640097,-500.0,0.00022054,3]
[349620575,1737330640107,-500.0,0.00022054,3]
[349620577,1737330640117,-500.0,0.00022054,3]
[349620579,1737330640126,-500.0,0.00022054,3]
[349620581,1737330640136,-500.0,0.00022054,3]
[349620583,1737330640145,-679.92,0.00022054,2]
[349620585,1737330640155,-500.0,0.00022054,3]
[349620587,1737330640165,-500.0,0.00022054,3]
[349620589,1737330640174,-500.0,0.00022054,3]
[349620591,1737330640184,-500.0,0.00022054,3]
[349620593,1737330640198,-500.0,0.00022054,3]
[349620595,1737330640207,-500.0,0.00022054,3]